lending/lending_fUSD_20260306
["ID","MTS","AMOUNT","RATE_DAILY","PERIOD"]
[407857611,1772836962960,-151.0,0.000477,120]
[407857612,1772836963000,-1158.388071,0.000477,120]
[407857613,1772836963041,-223.396597,0.000477,120]
[407857614,1772836963083,-1158.388073,0.000477,120]
[407857615,1772836963125,-223.396597,0.000477,120]
[407857616,1772836963167,-223.3966,0.000477,120]
[407857617,1772836963213,-151.0,0.000477,120]
[407857618,1772836963258,-151.0,0.000477,120]
[407857619,1772836963306,-151.0,0.000477,120]
[407857620,1772836963353,-282.071335,0.000477,120]
[407857621,1772836963398,-177.711871,0.000477,120]
[407857622,1772836963444,-177.711871,0.000477,120]
[407857623,1772836963491,-177.711871,0.000477,120]
[407857624,1772836963537,-177.711867,0.000477,120]
[407857625,1772836963581,-231.991888,0.000477,120]
[407857626,1772836963624,-159.49661076,0.00047719,30]
[407857627,1772836963666,-237.39121081,0.00047719,30]
[407857628,1772836963710,-178.56416906,0.00047719,30]
[407857629,1772836963754,-259.39398879,0.00047719,30]
[407857630,1772836963800,-150.0,0.00047719,30]
[407857631,1772836963843,-496.10721813,0.00047719,30]
[407857632,1772836963885,-196.401106,0.00047719,30]
[407857633,1772836963929,-150.0,0.00047721,120]
[407857634,1772836963973,-150.0,0.00047728,30]
[407857635,1772836964016,-150.0,0.00047729,30]
[407857636,1772836964060,-5000.0,0.00047753,30]
[407857637,1772836964102,-461.31,0.00047753,30]
[407857638,1772836964143,-1600.0,0.00047762,60]
[407857639,1772836964184,-150.0,0.00047764,120]
[407857640,1772836964223,-159.49661076,0.0004777,30]
[407857641,1772836964265,-237.39121081,0.0004777,30]
[407857642,1772836964307,-178.56416906,0.0004777,30]
[407857643,1772836964351,-259.39398879,0.0004777,30]
[407857644,1772836964397,-496.10721813,0.0004777,30]
[407857645,1772836964441,-196.401106,0.0004777,30]
[407857646,1772836964487,-151.43,0.00047776,120]
[407857647,1772836964532,-150.0,0.00047777,30]
[407857648,1772836964575,-150.0,0.00047777,30]
[407857649,1772836964617,-150.0,0.00047784,30]
[407857650,1772836964660,-150.0,0.00047787,120]
[407857651,1772836964700,-150.0,0.00047789,120]
[407857652,1772836964742,-150.0,0.00047794,30]
[407857653,1772836964782,-150.0,0.00047794,30]
[407857654,1772836964824,-12152.8201,0.000478,90]
[407857655,1772836964867,-15329.6674,0.000478,90]
[407857656,1772836964917,-3179.74,0.000478,120]
[407857657,1772836964958,-150.0,0.00047807,30]
[407857658,1772836965000,-159.49661076,0.00047822,30]
[407857659,1772836965041,-237.39121081,0.00047822,30]
[407857660,1772836965084,-178.56416906,0.00047822,30]
[407857661,1772836965127,-259.39398879,0.00047822,30]
[407857662,1772836965170,-496.10721813,0.00047822,30]
[407857663,1772836965213,-196.401106,0.00047822,30]
[407857664,1772836965256,-150.0,0.00047826,30]
[407857665,1772836965300,-150.0,0.00047839,30]
[407857666,1772836965345,-150.0,0.00047858,120]
[407857667,1772836965389,-500.0,0.00047863,30]
[407857668,1772836965432,-150.0,0.00047868,30]
[407857669,1772836965475,-159.49661076,0.00047873,30]
[407857670,1772836965677,-237.39121081,0.00047873,30]
[407857671,1772836965721,-178.56416906,0.00047873,30]
[407857672,1772836965763,-259.39398879,0.00047873,30]
[407857673,1772836965805,-496.10721813,0.00047873,30]
[407857674,1772836965848,-196.401106,0.00047873,30]
[407857675,1772836965894,-151.46,0.00047876,120]
[407857676,1772836965942,-150.0,0.00047893,30]
[407857677,1772836965988,-150.0,0.00047924,30]
[407857678,1772836966029,-159.49661076,0.00047925,30]
[407857679,1772836966072,-237.39121081,0.00047925,30]
[407857680,1772836966114,-178.56416906,0.00047925,30]
[407857681,1772836966158,-259.39398879,0.00047925,30]
[407857682,1772836966200,-496.10721813,0.00047925,30]
[407857683,1772836966242,-196.401106,0.00047925,30]
[407857684,1772836966284,-150.0,0.00047929,30]
[407857685,1772836966328,-150.0,0.00047932,30]
[407857686,1772836966370,-150.0,0.00047932,30]
[407857687,1772836966413,-150.0,0.00047948,30]
[407857688,1772836966456,-150.0,0.00047955,120]
[407857689,1772836966498,-150.0,0.00047959,30]
[407857690,1772836966539,-159.49661076,0.00047976,30]
[407857691,1772836966581,-237.39121081,0.00047976,30]
[407857692,1772836966625,-178.56416906,0.00047976,30]
[407857693,1772836966670,-259.39398879,0.00047976,30]
[407857694,1772836966715,-496.10721813,0.00047976,30]
[407857695,1772836966761,-196.401106,0.00047976,30]
[407857696,1772836966806,-150.0,0.00047985,120]
[407857697,1772836966848,-1042.7,0.00047985,120]
[407857698,1772836966890,-150.0,0.00047998,120]
[407857699,1772836966931,-1000.0,0.00047999,120]
[407857700,1772836966972,-50000.0,0.00048,70]
[407857701,1772836967012,-500.0,0.00048,120]
[407857702,1772836967053,-150.0,0.00048,120]
[407857703,1772836967096,-168.85498764,0.00048,120]
[407857704,1772836967138,-1065.48179057,0.00048,120]
[407857705,1772836967183,-4523.87920361,0.00048,120]
[407857706,1772836967227,-617.82675836,0.00048,120]
[407857707,1772836967274,-20000.0,0.00048,120]
[407857708,1772836967323,-342.75,0.00048,120]
[407857709,1772836967369,-2506.68002048,0.00048,30]
[407857710,1772836967415,-7153.36203362,0.00048,120]
[407857711,1772836967460,-805.34024522,0.00048,120]
[407857712,1772836967503,-152.0,0.00048,120]
[407857713,1772836967545,-154.0,0.00048,120]
[407857714,1772836967585,-298.0,0.00048,120]
[407857715,1772836967626,-500.0,0.00048,120]
[407857716,1772836967667,-150.0,0.00048003,30]
[407857717,1772836967709,-150.0,0.0004802,120]
[407857718,1772836967754,-150.0,0.00048022,30]
[407857719,1772836967797,-159.49661076,0.00048028,30]
[407857720,1772836967839,-237.39121081,0.00048028,30]
[407857721,1772836967881,-178.56416906,0.00048028,30]
[407857722,1772836967920,-259.39398879,0.00048028,30]
[407857723,1772836967962,-496.10721813,0.00048028,30]
[407857724,1772836968004,-196.401106,0.00048028,30]
[407857725,1772836968046,-150.0,0.00048037,120]
[407857726,1772836968088,-218.61207107,0.00048044,120]
[407857727,1772836968130,-150.0,0.0004805,30]
[407857728,1772836968172,-150.0,0.0004805,30]
[407857729,1772836968215,-150.0,0.00048058,30]
[407857730,1772836968259,-150.0,0.0004807,30]
[407857731,1772836968304,-150.0,0.0004807,30]
[407857732,1772836968351,-159.49661076,0.00048079,30]
[407857733,1772836968398,-237.39121081,0.00048079,30]
[407857734,1772836968444,-178.56416906,0.00048079,30]
[407857735,1772836968489,-259.39398879,0.00048079,30]
[407857736,1772836968535,-496.10721813,0.00048079,30]
[407857737,1772836968578,-196.401106,0.00048079,30]
[407857738,1772836968621,-150.0,0.00048095,30]
[407857739,1772836968662,-150.0,0.00048113,30]
[407857740,1772836968703,-150.0,0.0004812,30]
[407857741,1772836968743,-159.49661076,0.00048131,30]
[407857742,1772836968784,-237.39121081,0.00048131,30]
[407857743,1772836968824,-178.56416906,0.00048131,30]
[407857744,1772836968862,-259.39398879,0.00048131,30]
[407857745,1772836968906,-496.10721813,0.00048131,30]
[407857746,1772836968951,-196.401106,0.00048131,30]
[407857747,1772836968992,-150.0,0.00048131,30]
[407857748,1772836969033,-500.0,0.00048137,30]
[407857749,1772836969076,-150.0,0.00048141,30]
[407857750,1772836969118,-150.0,0.00048149,120]
[407857751,1772836969160,-150.0,0.00048167,30]
[407857752,1772836969201,-150.0,0.00048171,30]
[407857753,1772836969242,-159.49661076,0.00048182,30]
[407857754,1772836969286,-237.39121081,0.00048182,30]
[407857755,1772836969331,-178.56416906,0.00048182,30]
[407857756,1772836969376,-259.39398879,0.00048182,30]
[407857757,1772836969421,-150.0,0.00048182,30]
[407857758,1772836969466,-496.10721813,0.00048182,30]
[407857759,1772836969509,-196.401106,0.00048182,30]
[407857760,1772836969556,-150.0,0.00048189,120]
[407857761,1772836969599,-150.0,0.0004819,120]
[407857762,1772836969641,-150.0,0.00048207,30]
[407857763,1772836969683,-150.0,0.00048207,30]
[407857764,1772836969727,-150.0,0.00048218,30]
[407857765,1772836969769,-150.0,0.00048222,30]
[407857766,1772836969811,-150.0,0.00048232,30]
[407857767,1772836969853,-159.49661076,0.00048234,30]
[407857768,1772836969896,-237.39121081,0.00048234,30]
[407857769,1772836969937,-178.56416906,0.00048234,30]
[407857770,1772836969977,-259.39398879,0.00048234,30]
[407857771,1772836970019,-496.10721813,0.00048234,30]
[407857772,1772836970060,-196.401106,0.00048234,30]
[407857773,1772836970103,-150.0,0.00048277,30]
[407857774,1772836970303,-159.49661076,0.00048285,30]
[407857775,1772836970357,-237.39121081,0.00048285,30]
[407857776,1772836970405,-178.56416906,0.00048285,30]
[407857777,1772836970453,-259.39398879,0.00048285,30]
[407857778,1772836970501,-496.10721813,0.00048285,30]
[407857779,1772836970549,-196.401106,0.00048285,30]
[407857780,1772836970595,-150.0,0.00048286,30]
[407857781,1772836970639,-1687.49463185,0.00048286,30]
[407857782,1772836970684,-150.0,0.00048286,30]
[407857783,1772836970729,-6000.23093952,0.00048286,30]
[407857784,1772836970776,-150.0,0.00048286,30]
[407857785,1772836970823,-386.65391336,0.00048286,30]
[407857786,1772836970868,-150.0,0.00048293,30]
[407857787,1772836970919,-3526.0,0.000483,120]
[407857788,1772836970964,-19953.3367,0.000483,90]
[407857789,1772836971008,-355.0617,0.000483,90]
[407857790,1772836971053,-150.0,0.00048316,30]
[407857791,1772836971099,-150.0,0.00048323,30]
[407857792,1772836971142,-150.0,0.00048332,30]
[407857793,1772836971186,-159.49661076,0.00048337,30]
[407857794,1772836971232,-237.39121081,0.00048337,30]
[407857795,1772836971279,-178.56416906,0.00048337,30]
[407857796,1772836971325,-259.39398879,0.00048337,30]
[407857797,1772836971370,-496.10721813,0.00048337,30]
[407857798,1772836971413,-196.401106,0.00048337,30]
[407857799,1772836971454,-150.0,0.00048345,30]
[407857800,1772836971495,-150.0,0.00048345,30]
[407857801,1772836971535,-150.0,0.00048348,120]
[407857802,1772836971574,-467.19,0.00048353,120]
[407857803,1772836971614,-150.0,0.00048357,120]
[407857804,1772836971654,-150.0,0.00048374,120]
[407857805,1772836971694,-150.0,0.00048387,30]
[407857806,1772836971734,-159.49661076,0.00048388,30]
[407857807,1772836971774,-237.39121081,0.00048388,30]
[407857808,1772836971815,-178.56416906,0.00048388,30]
[407857809,1772836971856,-259.39398879,0.00048388,30]
[407857810,1772836971897,-496.10721813,0.00048388,30]
[407857811,1772836971940,-196.401106,0.00048388,30]
[407857812,1772836971986,-250.0,0.00048391,30]
[407857813,1772836972028,-150.0,0.000484,86]
[407857814,1772836972070,-500.0,0.00048411,30]
[407857815,1772836972113,-150.0,0.00048414,30]
[407857816,1772836972155,-150.0,0.00048414,30]
[407857817,1772836972196,-150.0,0.00048414,30]
[407857818,1772836972239,-150.0,0.00048414,30]
[407857819,1772836972282,-150.0,0.00048414,30]
[407857820,1772836972324,-348.35457207,0.00048421,120]
[407857821,1772836972367,-159.49661076,0.0004844,30]
[407857822,1772836972413,-237.39121081,0.0004844,30]
[407857823,1772836972454,-178.56416906,0.0004844,30]
[407857824,1772836972498,-259.39398879,0.0004844,30]
[407857825,1772836972541,-496.10721813,0.0004844,30]
[407857826,1772836972582,-196.401106,0.0004844,30]
[407857827,1772836972621,-150.0,0.00048441,30]
[407857828,1772836972660,-1109.0,0.0004845,30]
[407857829,1772836972698,-469.21,0.0004845,120]
[407857830,1772836972738,-150.0,0.00048463,120]
[407857831,1772836972778,-150.0,0.00048483,30]
[407857832,1772836972820,-150.0,0.00048483,30]
[407857833,1772836972859,-159.49661076,0.00048491,30]
[407857834,1772836972901,-237.39121081,0.00048491,30]
[407857835,1772836972944,-178.56416906,0.00048491,30]
[407857836,1772836972986,-259.39398879,0.00048491,30]
[407857837,1772836973026,-496.10721813,0.00048491,30]
[407857838,1772836973068,-196.401106,0.00048491,30]
[407857839,1772836973110,-551.58087606,0.00048493,120]
[407857840,1772836973155,-1000.0,0.00048493,120]
[407857841,1772836973204,-440.55882008,0.00048493,120]
[407857842,1772836973250,-150.0,0.00048496,30]
[407857843,1772836973297,-11559.82598547,0.000485,120]
[407857844,1772836973344,-1008.92647277,0.000485,120]
[407857845,1772836973392,-990.27341381,0.000485,120]
[407857846,1772836973441,-298.0,0.000485,120]
[407857847,1772836973490,-150.0,0.00048505,30]
[407857848,1772836973537,-150.0,0.00048512,30]
[407857849,1772836973584,-3179.74,0.00048516,120]
[407857850,1772836973633,-622.66,0.00048532,120]
[407857851,1772836973683,-150.0,0.00048535,30]
[407857852,1772836973731,-500.0,0.00048542,120]
[407857853,1772836973777,-500.0,0.00048542,120]
[407857854,1772836973823,-500.0,0.00048542,120]
[407857855,1772836973868,-500.0,0.00048542,120]
[407857856,1772836973916,-500.0,0.00048542,120]
[407857857,1772836973962,-500.0,0.00048542,120]
[407857858,1772836974008,-500.0,0.00048542,120]
[407857859,1772836974051,-500.0,0.00048542,120]
[407857860,1772836974095,-500.0,0.00048542,120]
[407857861,1772836974140,-500.0,0.00048542,120]
[407857862,1772836974181,-500.0,0.00048542,120]
[407857863,1772836974222,-500.0,0.00048542,120]
[407857864,1772836974264,-500.0,0.00048542,120]
[407857865,1772836974307,-500.0,0.00048542,120]
[407857866,1772836974351,-500.0,0.00048542,120]
[407857867,1772836974394,-500.0,0.00048542,120]
[407857868,1772836974438,-500.0,0.00048542,120]
[407857869,1772836974482,-500.0,0.00048542,120]
[407857870,1772836974526,-500.0,0.00048542,120]
[407857871,1772836974568,-500.0,0.00048542,120]
[407857872,1772836974608,-500.0,0.00048542,120]
[407857873,1772836974648,-500.0,0.00048542,120]
[407857874,1772836974688,-500.0,0.00048542,120]
[407857875,1772836974728,-500.0,0.00048542,120]
[407857876,1772836974768,-500.0,0.00048542,120]
[407857877,1772836974807,-500.0,0.00048542,120]
[407857878,1772836974849,-500.0,0.00048542,120]
[407857879,1772836975106,-500.0,0.00048542,120]
[407857880,1772836975151,-500.0,0.00048542,120]
[407857881,1772836975196,-500.0,0.00048542,120]
[407857882,1772836975244,-500.0,0.00048542,120]
[407857883,1772836975294,-500.0,0.00048542,120]
[407857884,1772836975349,-500.0,0.00048542,120]
[407857885,1772836975400,-500.0,0.00048542,120]
[407857886,1772836975450,-500.0,0.00048542,120]
[407857887,1772836975497,-500.0,0.00048542,120]
[407857888,1772836975542,-500.0,0.00048542,120]
[407857889,1772836975586,-500.0,0.00048542,120]
[407857890,1772836975628,-934.0,0.00048542,120]
[407857891,1772836975671,-500.0,0.00048542,120]
[407857892,1772836975713,-500.0,0.00048542,120]
[407857893,1772836975758,-500.0,0.00048542,120]
[407857894,1772836975803,-500.0,0.00048542,120]
[407857895,1772836975848,-500.0,0.00048542,120]
[407857896,1772836975892,-500.0,0.00048542,120]
[407857897,1772836975937,-500.0,0.00048542,120]
[407857898,1772836975982,-439.676529,0.00048542,120]
[407857899,1772836976024,-439.676529,0.00048542,120]
[407857900,1772836976070,-439.676529,0.00048542,120]
[407857901,1772836976119,-439.676533,0.00048542,120]
[407857902,1772836976162,-162.173486,0.00048542,120]
[407857903,1772836976206,-162.173486,0.00048542,120]
[407857904,1772836976251,-162.173486,0.00048542,120]
[407857905,1772836976295,-162.173476,0.00048542,120]
[407857906,1772836976340,-159.49661076,0.00048543,30]
[407857907,1772836976390,-237.39121081,0.00048543,30]
[407857908,1772836976438,-178.56416906,0.00048543,30]
[407857909,1772836976493,-259.39398879,0.00048543,30]
[407857910,1772836976541,-496.10721813,0.00048543,30]
[407857911,1772836976589,-196.401106,0.00048543,30]
[407857912,1772836976638,-150.0,0.00048551,30]
[407857913,1772836976683,-150.0,0.00048573,120]
[407857914,1772836976728,-150.0,0.00048585,120]
[407857915,1772836976773,-276.85781897,0.00048593,120]
[407857916,1772836976818,-150.0,0.00048593,120]
[407857917,1772836976865,-159.49661076,0.00048594,30]
[407857918,1772836976912,-237.39121081,0.00048594,30]
[407857919,1772836976955,-178.56416906,0.00048594,30]
[407857920,1772836976996,-259.39398879,0.00048594,30]
[407857921,1772836977038,-496.10721813,0.00048594,30]
[407857922,1772836977080,-196.401106,0.00048594,30]
[407857923,1772836977122,-150.0,0.00048596,30]
[407857924,1772836977171,-150.0,0.00048606,30]
[407857925,1772836977212,-150.0,0.0004861,30]
[407857926,1772836977254,-150.0,0.00048621,30]
[407857927,1772836977299,-150.0,0.00048621,30]
[407857928,1772836977351,-159.49661076,0.00048646,30]
[407857929,1772836977397,-237.39121081,0.00048646,30]
[407857930,1772836977444,-178.56416906,0.00048646,30]
[407857931,1772836977491,-259.39398879,0.00048646,30]
[407857932,1772836977537,-150.0,0.00048646,30]
[407857933,1772836977582,-496.10721813,0.00048646,30]
[407857934,1772836977628,-196.401106,0.00048646,30]
[407857935,1772836977672,-150.0,0.00048657,30]
[407857936,1772836977716,-150.0,0.0004866,30]
[407857937,1772836977757,-500.0,0.00048685,30]
[407857938,1772836977799,-150.0,0.00048687,30]
[407857939,1772836977841,-159.49661076,0.00048697,30]
[407857940,1772836977890,-237.39121081,0.00048697,30]
[407857941,1772836977935,-178.56416906,0.00048697,30]
[407857942,1772836977976,-259.39398879,0.00048697,30]
[407857943,1772836978019,-496.10721813,0.00048697,30]
[407857944,1772836978062,-196.401106,0.00048697,30]
[407857945,1772836978105,-150.0,0.00048697,30]
[407857946,1772836978150,-150.0,0.00048708,30]
[407857947,1772836978195,-150.0,0.00048715,30]
[407857948,1772836978241,-150.0,0.00048723,120]
[407857949,1772836978289,-150.0,0.00048732,30]
[407857950,1772836978336,-151.0,0.00048734,120]
[407857951,1772836978383,-151.0,0.00048734,120]
[407857952,1772836978429,-151.0,0.00048734,120]
[407857953,1772836978476,-151.0,0.00048734,30]
[407857954,1772836978524,-151.0,0.00048734,30]
[407857955,1772836978571,-167.586484,0.00048734,120]
[407857956,1772836978616,-167.586484,0.00048734,120]
[407857957,1772836978659,-167.586484,0.00048734,120]
[407857958,1772836978712,-167.586484,0.00048734,120]
[407857959,1772836978758,-151.0,0.00048734,120]
[407857960,1772836978800,-151.0,0.00048734,120]
[407857961,1772836978842,-151.0,0.00048734,120]
[407857962,1772836978885,-230.908077,0.00048734,120]
[407857963,1772836978929,-159.49661076,0.00048748,30]
[407857964,1772836978970,-237.39121081,0.00048748,30]
[407857965,1772836979012,-178.56416906,0.00048748,30]
[407857966,1772836979054,-259.39398879,0.00048748,30]
[407857967,1772836979096,-496.10721813,0.00048748,30]
[407857968,1772836979139,-196.401106,0.00048748,30]
[407857969,1772836979183,-150.0,0.00048758,30]
[407857970,1772836979226,-150.0,0.00048758,30]
[407857971,1772836979270,-150.0,0.0004877,30]
[407857972,1772836979317,-150.0,0.00048778,30]
[407857973,1772836979366,-150.0,0.00048778,30]
[407857974,1772836979419,-159.49661076,0.000488,30]
[407857975,1772836979464,-237.39121081,0.000488,30]
[407857976,1772836979510,-178.56416906,0.000488,30]
[407857977,1772836979555,-259.39398879,0.000488,30]
[407857978,1772836979602,-496.10721813,0.000488,30]
[407857979,1772836979649,-196.401106,0.000488,30]
[407857980,1772836979696,-11556.14861681,0.000488,120]
[407857981,1772836979743,-275832.88389318,0.000488,120]
[407857982,1772836979788,-150.0,0.00048806,30]
[407857983,1772836980097,-150.0,0.00048825,30]
[407857984,1772836980145,-159.49661076,0.00048851,30]
[407857985,1772836980193,-237.39121081,0.00048851,30]
[407857986,1772836980242,-178.56416906,0.00048851,30]
[407857987,1772836980289,-259.39398879,0.00048851,30]
[407857988,1772836980338,-496.10721813,0.00048851,30]
[407857989,1772836980386,-196.401106,0.00048851,30]
[407857990,1772836980434,-467.19,0.00048856,120]
[407857991,1772836980483,-1600.0,0.00048858,60]
[407857992,1772836980531,-150.0,0.00048869,30]
[407857993,1772836980582,-276.85781897,0.00048871,120]
[407857994,1772836980626,-150.0,0.0004888,30]
[407857995,1772836980671,-625.90926147,0.0004888,120]
[407857996,1772836980717,-456.0,0.00048886,120]
[407857997,1772836980759,-4373.26773562,0.00048889,120]
[407857998,1772836980800,-150.0,0.00048896,30]
[407857999,1772836980843,-150.0,0.00048896,30]
[407858000,1772836980888,-768.11938864,0.00048899,120]
[407858001,1772836980932,-150.0,0.00048899,30]
[407858002,1772836980983,-210.68619898,0.000489,120]
[407858003,1772836981030,-310.71197871,0.000489,120]
[407858004,1772836981073,-310.71197871,0.000489,120]
[407858005,1772836981115,-310.71197871,0.000489,120]
[407858006,1772836981158,-310.71197871,0.000489,120]
[407858007,1772836981201,-310.71197871,0.000489,120]
[407858008,1772836981244,-310.71197871,0.000489,120]
[407858009,1772836981288,-159.49661076,0.00048903,30]
[407858010,1772836981333,-237.39121081,0.00048903,30]
[407858011,1772836981379,-178.56416906,0.00048903,30]
[407858012,1772836981427,-259.39398879,0.00048903,30]
[407858013,1772836981473,-496.10721813,0.00048903,30]
[407858014,1772836981515,-196.401106,0.00048903,30]
[407858015,1772836981556,-150.0,0.00048904,30]
[407858016,1772836981599,-150.0,0.00048922,120]
[407858017,1772836981643,-5262.40338,0.00048924,30]
[407858018,1772836981685,-150.0,0.00048934,30]
[407858019,1772836981728,-1345.32,0.00048947,120]
[407858020,1772836981771,-159.49661076,0.00048954,30]
[407858021,1772836981814,-237.39121081,0.00048954,30]
[407858022,1772836981860,-178.56416906,0.00048954,30]
[407858023,1772836981904,-259.39398879,0.00048954,30]
[407858024,1772836981951,-496.10721813,0.00048954,30]
[407858025,1772836981994,-196.401106,0.00048954,30]
[407858026,1772836982037,-500.0,0.00048959,30]
[407858027,1772836982081,-150.0,0.0004896,30]
[407858028,1772836982126,-150.0,0.00048966,120]
[407858029,1772836982169,-150.0,0.00048989,30]
[407858030,1772836982211,-213.0,0.0004899,30]
[407858031,1772836982250,-219.0,0.0004899,30]
[407858032,1772836982292,-1000.0,0.00048999,120]
[407858033,1772836982335,-50000.0,0.00049,71]
[407858034,1772836982376,-150.0,0.00049,120]
[407858035,1772836982416,-150.0,0.00049,120]
[407858036,1772836982455,-150.0,0.00049,120]
[407858037,1772836982496,-150.0,0.00049,120]
[407858038,1772836982538,-150.0,0.00049,120]
[407858039,1772836982580,-200.0,0.00049,120]
[407858040,1772836982620,-6737.0,0.00049,120]
[407858041,1772836982662,-384.89599336,0.00049,120]
[407858042,1772836982704,-869.62082248,0.00049,120]
[407858043,1772836982742,-244.06510152,0.00049,120]
[407858044,1772836982783,-522.93168269,0.00049,120]
[407858045,1772836982821,-1527.08485088,0.00049,120]
[407858046,1772836982862,-269.47783106,0.00049,120]
[407858047,1772836982903,-1158.97753329,0.00049,120]
[407858048,1772836982943,-37481.41249374,0.00049,120]
[407858049,1772836982987,-6373.99181213,0.00049,120]
[407858050,1772836983029,-20000.0,0.00049,120]
[407858051,1772836983070,-6000.0,0.00049,120]
[407858052,1772836983111,-143555.35690994,0.00049,120]
[407858053,1772836983154,-152.0,0.00049,120]
[407858054,1772836983200,-154.0,0.00049,120]
[407858055,1772836983248,-298.0,0.00049,120]
[407858056,1772836983293,-150.0,0.00049002,30]
[407858057,1772836983342,-159.49661076,0.00049006,30]
[407858058,1772836983390,-237.39121081,0.00049006,30]
[407858059,1772836983438,-178.56416906,0.00049006,30]
[407858060,1772836983482,-259.39398879,0.00049006,30]
[407858061,1772836983528,-496.10721813,0.00049006,30]
[407858062,1772836983570,-196.401106,0.00049006,30]
[407858063,1772836983611,-150.0,0.00049021,30]
[407858064,1772836983651,-150.0,0.00049034,30]
[407858065,1772836983692,-150.0,0.00049034,30]
[407858066,1772836983733,-1500.0,0.00049044,60]
[407858067,1772836983774,-2900.0,0.00049044,60]
[407858068,1772836983815,-150.0,0.00049044,30]
[407858069,1772836983862,-151974.0,0.0004905,60]
[407858070,1772836983905,-150.0,0.00049051,30]
[407858071,1772836983949,-150.0,0.00049051,30]
[407858072,1772836983991,-159.49661076,0.00049057,30]
[407858073,1772836984032,-237.39121081,0.00049057,30]
[407858074,1772836984077,-178.56416906,0.00049057,30]
[407858075,1772836984120,-259.39398879,0.00049057,30]
[407858076,1772836984163,-496.10721813,0.00049057,30]
[407858077,1772836984206,-196.401106,0.00049057,30]
[407858078,1772836984246,-150.0,0.00049099,30]
[407858079,1772836984291,-150.0,0.000491,30]
[407858080,1772836984338,-159.49661076,0.00049109,30]
[407858081,1772836984385,-237.39121081,0.00049109,30]
[407858082,1772836984434,-178.56416906,0.00049109,30]
[407858083,1772836984480,-259.39398879,0.00049109,30]
[407858084,1772836984524,-150.0,0.00049109,30]
[407858085,1772836984570,-496.10721813,0.00049109,30]
[407858086,1772836984617,-196.401106,0.00049109,30]
[407858087,1772836984820,-278.3076083,0.00049114,120]
[407858088,1772836984869,-150.0,0.00049137,120]
[407858089,1772836984924,-150.0,0.00049142,30]
[407858090,1772836984972,-150.0,0.00049142,30]
[407858091,1772836985019,-150.0,0.00049142,120]
[407858092,1772836985068,-150.0,0.00049154,30]
[407858093,1772836985117,-159.49661076,0.0004916,30]
[407858094,1772836985167,-237.39121081,0.0004916,30]
[407858095,1772836985218,-178.56416906,0.0004916,30]
[407858096,1772836985272,-259.39398879,0.0004916,30]
[407858097,1772836985326,-496.10721813,0.0004916,30]
[407858098,1772836985379,-196.401106,0.0004916,30]
[407858099,1772836985429,-150.0,0.00049171,30]
[407858100,1772836985479,-150.0,0.00049171,30]
[407858101,1772836985531,-150.0,0.00049175,120]
[407858102,1772836985577,-150.0,0.00049198,30]
[407858103,1772836985625,-100183.71826514,0.000492,60]
[407858104,1772836985673,-150.0,0.00049208,30]
[407858105,1772836985725,-159.49661076,0.00049212,30]
[407858106,1772836985775,-237.39121081,0.00049212,30]
[407858107,1772836985823,-178.56416906,0.00049212,30]
[407858108,1772836985873,-259.39398879,0.00049212,30]
[407858109,1772836985926,-496.10721813,0.00049212,30]
[407858110,1772836985974,-196.401106,0.00049212,30]